Cogmind - Beta 12 @@@ ROGUE MODE // 2023.03.30 @ 16:05:24 Player: ArabianSandBoa Result: Destroyed by G-47 Trooper with Particle Gun Performance ------------- Evolutions (3) 1500 Regions Visited (12) 2400 Robots Destroyed (213) 1065 Value Destroyed (9233) 9233 Prototype IDs (49) 980 Alien Tech Used (0) 0 Bonus (4825) 4825 TOTAL SCORE: 20003 Bonus ------- High Alert Combat Kills 1268 Follower Combat Kills 703 Entered Garrisons 800 Used RIF Installer 2000 Aligned with FarCom 300 Friendly Fire -246 Cogmind --------- Core Integrity 0/700 Matter 138/300 Energy 315/315 System Corruption 52% Temperature Cool (9) Movement Core (1800) Ox35 Location -7/Garrison Parts ------- > --- POWER (1) -------- Neutrino Core > --- PROPULSION (3) --- (None) > --- UTILITY (7) ------ Advanced Heat Sink Huge Storage Unit Cloak of Protection Hacking Suite Relay Coupler [NC] (36) Relay Coupler [Brawler] (34) Relay Coupler [Sentry] (3) > --- WEAPON (2) ------- Wave Gun > --- INVENTORY (25) --- Centrium Wheel Advanced Power Amplifier Medium Storage Unit Advanced Weight Redist. System Experimental Sensor Array Improved Particle Charger Advanced Transmission Jammer Advanced Reaction Control System Advanced Phase Shifter Improved Cloaking Device Improved Powered Armor Relay Coupler [Swarmer] (52) Relay Coupler [Heavy] (21) Lightning Gun Phase Gun Phase Gun Heavy Ion Cannon Railgun Lance Lance Peak State ------------ > --- POWER ------------ Light Antimatter Reactor > --- PROPULSION ------- Armored Wheel Armored Wheel Armored Wheel > --- UTILITY ---------- Huge Storage Unit Advanced Transmission Jammer Cloak of Protection Hacking Suite System Shield Relay Coupler [NC] Relay Coupler [Brawler] > --- WEAPON ----------- Long-range Proton Cannon Railgun > --- INVENTORY -------- Light Antimatter Reactor Centrium Wheel Advanced Power Amplifier Medium Storage Unit Advanced Weight Redist. System Experimental Sensor Array Improved Particle Charger Advanced Reaction Control System Advanced Phase Shifter Improved Cloaking Device Improved Cloaking Device Improved Powered Armor Relay Coupler [Swarmer] Relay Coupler [Sentry] Lightning Gun Phase Gun Phase Gun Heavy Ion Cannon Railgun Heavy Missile Launcher Improved Remote Datajack Lance Lance [Rating: 65] Favorites ----------- Power Heavy Ion Engine Engine Heavy Ion Engine Power Core Nuclear Core Reactor Light Antimatter Reactor Propulsion Compact Wheel Treads Medium Treads Leg Aluminum Leg Wheel Compact Wheel Hover Unit Combat Airjet Utility Hacking Suite Device Improved Cooling System Storage Huge Storage Unit Processor Improved Targeting Computer Hackware Hacking Suite Protection Improved Powered Armor Weapon Spread Laser Energy Gun Spread Laser Energy Cannon Long-range Proton Cannon Ballistic Gun KE Penetrator Ballistic Cannon Bore Cannon Launcher Missile Launcher Special Weapon Improved Remote Datajack Piercing Weapon Lance Special Melee Weapon Datajack Build | -11 -10 -10 -10 -9 -8 -8 -8 -8 -7 -7 -7 -7 ------- Run | Jun Mat Min Exi Min Mat Gar Mat Gar Fac Gar Fac Gar Slots Evolved 6 | . . . . . 4 . . . 2 . . . Power . | . . . . . . . . . . . . . Propulsion 1 | . . . . . 1 . . . . . . . Utility 5 | . . . . . 3 . . . 2 . . . Weapon . | . . . . . . . . . . . . . Parts Attached 209 | . 12 5 1 2 49 20 9 13 51 33 4 10 Power 17 | . 1 . . . 5 2 . 3 3 1 . 2 Engine 9 | . 1 . . . 4 2 . . 2 . . . Core 6 | . . . . . 1 . . 3 1 . . 1 Reactor 2 | . . . . . . . . . . 1 . 1 Propulsion 53 | . 6 . . 1 19 6 2 3 7 9 . . Treads 13 | . 2 . . . 1 1 2 . 2 5 . . Leg . | . . . . . . . . . . . . . Wheel 38 | . 4 . . 1 18 3 . 3 5 4 . . Hover 2 | . . . . . . 2 . . . . . . Flight . | . . . . . . . . . . . . . Utility 53 | . 3 3 . . 9 2 4 3 13 9 3 4 Device 21 | . 1 3 . . 2 1 1 2 4 2 2 3 Storage 2 | . 2 . . . . . . . . . . . Processor 2 | . . . . . 1 . 1 . . . . . Hackware 18 | . . . . . 3 . 1 1 8 4 1 . Protection 10 | . . . . . 3 1 1 . 1 3 . 1 Artifact . | . . . . . . . . . . . . . Weapon 86 | . 2 2 1 1 16 10 3 4 28 14 1 4 Energy Gun 27 | . . 2 . 1 9 3 1 1 7 1 . 2 Energy Cannon 14 | . . . . . 3 3 . . 3 5 . . Ballistic Gun 16 | . 2 . . . 4 1 1 1 4 2 1 . Ballistic Cannon 4 | . . . . . . 1 . . 1 2 . . Launcher 7 | . . . . . . 2 . 1 1 2 . 1 Special Weapon 9 | . . . . . . . . 1 5 2 . 1 Impact Weapon . | . . . . . . . . . . . . . Slashing Weapon . | . . . . . . . . . . . . . Piercing Weapon 8 | . . . . . . . 1 . 7 . . . Special Melee Weapon 1 | . . . 1 . . . . . . . . . Unidentified Prototypes 8 | . 1 1 . . 2 . 1 . 3 . . . Corrupted Parts 5 | . . . . . . . . . . 5 . . System Corruption 41 | . . . . . . . . . . 41 . . Parts Lost 36 | . 2 . . 1 9 5 . 1 4 2 3 9 Power 6 | . . . . . 2 1 . 1 . . 1 1 Propulsion 16 | . 2 . . 1 4 3 . . 2 1 . 3 Utility 7 | . . . . . 2 . . . 1 1 1 2 Weapon 7 | . . . . . 1 1 . . 1 . 1 3 Highest Loss Streak 4 | . 1 . . 1 2 2 . 1 3 2 1 4 To Critical Strikes . | . . . . . . . . . . . . . Average Slot Usage (%) 96 | . 96 100 100 99 98 89 99 99 94 97 99 94 Engine 6 | . 14 14 14 14 7 3 9 2 3 6 . . Core 1 | . . . . . 1 4 . 6 3 . . . Treads 7 | . 11 . . . . . 26 22 . 14 . . Wheel 15 | . 14 28 28 27 26 15 . 4 18 6 23 19 Device 6 | . 8 14 14 14 4 9 . 9 2 5 6 2 Storage 9 | . 17 14 14 14 9 9 9 9 7 7 7 7 Processor 3 | . . . . . 7 8 6 . . . . . Hackware 24 | . . . . . 22 18 25 22 40 35 39 37 Protection 1 | . . . . . . . 3 3 1 3 . 4 Energy Gun 7 | . 6 26 14 28 12 8 9 4 3 . . 3 Energy Cannon 2 | . . . . . 2 2 . . 3 6 5 . Ballistic Gun 4 | . 20 1 . . 2 . 4 8 2 1 9 10 Ballistic Cannon 1 | . . . . . . 5 . . . 4 . . Piercing Weapon 1 | . . . . . . . 4 1 3 1 . . Naked Turns . | . . . . . . . . . . . . . Heaviest Build 116 | 12 95 95 93 95 101 116 112 112 108 113 116 112 Greatest Support 83 | 20 40 32 32 32 48 48 83 83 60 70 36 36 Greatest Overweight (x) 35 | . 5 2 2 3 3 7 6 8 3 9 3 35 Average Overweight (x) 2 | . 1 2 2 2 1 3 1 1 2 1 2 3 Largest Inventory Capacity 25 | . 25 25 25 25 25 25 25 25 25 25 25 25 Average Capacity 24 | . 19 25 25 25 25 25 25 25 25 25 25 25 Most Carried 25 | . 25 25 25 25 25 25 25 25 25 25 25 25 Average Carried 23 | . 15 24 24 24 24 24 24 24 24 24 23 23 Final Capacity 25 | 8 25 25 25 25 25 25 25 25 25 25 25 25 Final Carried 25 | 6 24 25 25 24 25 25 24 24 25 25 23 20 Class Distribution -------------------- 43% | Hacker-Mutant 20% | Bothacker-Mutant 16% | Scavenger-Mutant 13% | Mutant 6% | Wizard-Mutant Dominant Class ---------------- Mutant | -10/Materials Mutant | -10/Mines Scavenger-Mutant | -10/Exiles Mutant | -9/Mines Hacker-Mutant | -8/Materials Scavenger-Mutant | -8/Garrison Hacker-Mutant | -8/Materials Bothacker-Mutant | -8/Garrison Wizard-Mutant | -7/Factory Hacker-Mutant | -7/Garrison Bothacker-Mutant | -7/Factory Bothacker-Mutant | -7/Garrison Resources | -11 -10 -10 -10 -9 -8 -8 -8 -8 -7 -7 -7 -7 ----------- Run | Jun Mat Min Exi Min Mat Gar Mat Gar Fac Gar Fac Gar Matter Collected 4567 | 200 452 . . 111 542 467 118 503 832 764 118 460 Remotely . | . . . . . . . . . . . . . Salvage Created 8806 | . 1116 100 . 117 1726 1163 257 802 1412 1219 307 587 Parts 464 | . 56 4 . 21 78 69 17 46 81 45 21 26 Haulers Intercepted 13 | . 2 . . . 5 . 2 . 4 . . . Recyclers Shooed 7 | . 3 . . . 4 . . . . . . . Parts Field Recycled . | . . . . . . . . . . . . . Retrieved Matter . | . . . . . . . . . . . . . Parts Self-Destructed . | . . . . . . . . . . . . . Prevented . | . . . . . . . . . . . . . Kills | -11 -10 -10 -10 -9 -8 -8 -8 -8 -7 -7 -7 -7 ------- Run | Jun Mat Min Exi Min Mat Gar Mat Gar Fac Gar Fac Gar Combat Hostiles Destroyed 150 | . 10 2 . 5 24 27 2 20 18 24 5 13 Melee 4 | . . . . . . . 1 . 3 . . . Guns 76 | . 10 2 . 5 20 9 1 13 3 . 3 10 Cannons 38 | . . . . . 3 14 . . 8 12 1 . AOE 28 | . . . . . . 4 . 7 3 10 1 3 Classes Destroyed 16 | . 7 . . 2 3 1 . . 1 2 . . Worker 8 | . 4 . . 1 1 . . . 2 . . . Builder 6 | . . . . 2 2 . . . 2 . . . Tunneler 1 | . . . . . . . . . 1 . . . Hauler 13 | . 2 . . . 5 . 2 . 4 . . . Recycler 17 | . 5 . . . 8 . 1 . 3 . . . Mechanic 2 | . 1 . . . 1 . . . . . . . Operator 6 | . 2 . . . 1 . 1 . 2 . . . Watcher 10 | . 3 . . . 1 1 . . 3 . 1 1 Swarmer 42 | . . . . 5 4 8 . 9 4 8 . 4 Grunt 67 | . 10 2 . . 12 11 1 4 7 11 3 6 Duelist 1 | . . . . . . . . . . 1 . . Sentry 19 | . . . . . 5 5 . 4 1 2 1 1 Specialist 3 | . . . . . 2 . 1 . . . . . Hunter 5 | . . . . . 1 2 . . 1 1 . . Programmer 12 | . . . . . . 1 . 3 5 . 1 2 Behemoth 1 | . . . . . . . . . . 1 . . Best Kill Streak 11 | . 11 2 . 3 5 6 2 9 7 7 2 4 Combat Bots Only 9 | . 3 2 . 3 4 6 1 9 4 7 2 4 Max Kills in Single Turn 4 | . 2 1 . 2 1 2 1 2 4 3 1 1 Gunslinging 1 | . . . . 1 . . . . . . . . Exploded 3 | . . . . . . 2 . 2 3 3 1 1 Melee 1 | . . . . . . . 1 . 1 . . . Uniques/NPCs Destroyed . | . . . . . . . . . . . . . Combat | -11 -10 -10 -10 -9 -8 -8 -8 -8 -7 -7 -7 -7 -------- Run | Jun Mat Min Exi Min Mat Gar Mat Gar Fac Gar Fac Gar Damage Taken 7760 | . 697 98 . 97 1109 735 312 803 1148 848 533 1380 Core 1347 | . 96 58 . 36 182 191 18 62 244 78 101 281 Absorbed by Shields . | . . . . . . . . . . . . . Redirected to Shielding 9 | . . . . . . . . . 9 . . . Regen/Repaired (Parts) 34 | . . . . . 34 . . . . . . . Core Remaining (%) 47 | 100 . . . 24 . . . 17 . . . . Volleys Fired 654 | . 83 6 . 10 119 81 7 81 80 100 18 69 Largest 2 | . 2 2 . 2 2 2 2 2 2 2 2 2 Hottest 155 | . 80 46 . 130 130 143 94 94 155 146 116 136 Shots Fired 1095 | . 166 12 . 20 234 151 14 103 126 130 30 109 Gun 792 | . 166 12 . 20 192 90 14 92 61 18 25 102 Cannon 248 | . . . . . 42 59 . . 43 99 5 . Launcher 18 | . . . . . . 2 . 6 1 7 . 2 Special 37 | . . . . . . . . 5 21 6 . 5 Kinetic 411 | . 114 12 . . 34 33 7 70 30 24 25 62 Thermal 479 | . 52 . . 20 200 99 6 22 37 16 . 27 Explosive 18 | . . . . . . 2 . 6 1 7 . 2 Electromagnetic 150 | . . . . . . 17 1 . 37 77 5 13 Robot Hit Streak 33 | . 20 11 . 6 21 33 12 27 10 10 12 11 Robot Miss Streak 13 | . 4 1 . 7 13 2 . 4 8 3 3 3 Penetration Max 1 | . . . . . . . . 1 1 . . 1 Secondary Targets 8 | . . 1 . 1 2 . . 2 1 . . 1 Max Gunslinging Chain 1 | . . 1 . 1 1 . . 1 1 . . 1 Shots Hit Robots 735 | . 108 11 4 13 186 94 12 70 81 68 22 66 Core Hits 425 | . 41 4 . 21 139 57 7 41 39 42 10 24 Critical Kills 7 | . . . . . . 4 . 1 2 . . . Critical Parts Destroyed 3 | . . . . . . 1 . . . . 1 1 Critical Strikes 25 | . . . . . 1 12 . 3 2 5 1 1 Burn 8 | . . . . . 1 5 . 2 . . . . Meltdown 1 | . . . . . . . . . 1 . . . Destroy 9 | . . . . . . 5 . 1 1 . 1 1 Blast 1 | . . . . . . . . . . 1 . . Corrupt 5 | . . . . . . 2 . . . 3 . . Impale 1 | . . . . . . . . . . 1 . . Melee Attacks 35 | . . . 4 . . . 6 . 22 3 . . Impact . | . . . . . . . . . . . . . Slashing . | . . . . . . . . . . . . . Piercing 31 | . . . . . . . 6 . 22 3 . . Sneak Attacks 4 | . . . 4 . . . . . . . . . Combat Hostiles . | . . . . . . . . . . . . . Follow-up Attacks . | . . . . . . . . . . . . . Damage Inflicted 18078 | . 1595 171 . 196 3157 2165 252 1885 2379 3461 728 2089 Guns 10401 | . 1595 171 . 196 2425 1224 228 1439 728 225 474 1696 Cannons 4172 | . . . . . 732 716 . . 972 1558 194 . Explosions 3063 | . . . . . . 225 . 446 530 1409 60 393 Melee 442 | . . . . . . . 24 . 149 269 . . Ramming . | . . . . . . . . . . . . . Kinetic 5188 | . 1162 171 . . 282 362 102 1096 246 310 474 983 Thermal 7719 | . 433 . . 196 2875 1380 104 343 1267 482 60 579 Explosive 2341 | . . . . . . 225 . 446 235 1126 . 309 Electromagnetic 2388 | . . . . . . 198 22 . 482 1274 194 218 Impact . | . . . . . . . . . . . . . Slashing . | . . . . . . . . . . . . . Piercing 442 | . . . . . . . 24 . 149 269 . . Highest Corruption 52 | . . . . . . . . 7 8 47 51 52 Average Corruption 27 | . . . . . . . . 5 4 28 47 51 Corruption Purged 10 | . . . . . . . . 7 1 2 . . Corruption Blocked . | . . . . . . . . . . . . . Effects 220 | . . . . . . . . 7 24 95 37 57 Message Errors 41 | . . . . . . . . . 7 21 6 7 Matter Fused 42 | . . . . . . . . 2 6 16 6 12 Heat Flow Errors 24 | . . . . . . . . 1 1 11 5 6 Energy Discharges 22 | . . . . . . . . . 3 11 5 3 Parts Rejected 4 | . . . . . . . . . 1 3 . . Parts Fused 3 | . . . . . . . . . 1 1 1 . Data Loss (minor) 26 | . . . . . . . . 4 3 10 3 6 Data Loss (major) 9 | . . . . . . . . . . 4 3 2 Misfires 10 | . . . . . . . . . 1 4 . 5 Alerts 4 | . . . . . . . . . 1 1 2 . Misdirections 2 | . . . . . . . . . . . . 2 Weapon Failures 33 | . . . . . . . . . . 13 6 14 Overload Shots . | . . . . . . . . . . . . . Overflow Damage 461 | . . . . . 49 13 . 45 129 183 . 42 Projectiles 65 | . . . . . 49 . . . 2 14 . . Explosions 236 | . . . . . . 13 . 45 123 13 . 42 Melee 160 | . . . . . . . . . 4 156 . . Knockbacks 8 | . . . . . . 4 . . . 4 . . Impact . | . . . . . . . . . . . . . Kinetic 8 | . . . . . . 4 . . . 4 . . Secondary . | . . . . . . . . . . . . . Self-Inflicted Damage 174 | . . . . . . 14 . . . 72 25 63 Shots 5 | . . . . . . 1 . . . 2 1 1 Rammed . | . . . . . . . . . . . . . Targets Rammed . | . . . . . . . . . . . . . Kicked . | . . . . . . . . . . . . . Crushed . | . . . . . . . . . . . . . Highest Temperature 422 | . 225 12 . 60 422 144 51 278 390 259 225 388 Average Temperature 82 | . 105 7 . 31 77 36 19 118 93 91 65 101 Received Heat Transfer 2676 | . 387 57 . . 504 342 27 234 249 207 180 489 Effects 6 | . . . . . 1 . . 2 1 . 2 . Interference 4 | . . . . . . . . 2 . . 2 . Matter Decay 1 | . . . . . . . . . 1 . . . Damage (minor) 1 | . . . . . 1 . . . . . . . Siege Activations . | . . . . . . . . . . . . . Robots Corrupted 4 | . . . . . . . . . . 4 . . Combat Hostiles 2 | . . . . . . . . . . 2 . . Parts Fried 18 | . . . . . . 1 . . 3 8 2 4 Impact Corruptions . | . . . . . . . . . . . . . Robots Melted 2 | . . . . . 1 . . . 1 . . . Combat Hostiles 2 | . . . . . 1 . . . 1 . . . Parts Melted 17 | . . . . . 5 4 . 2 4 2 . . Heat Transferred 13436 | . 975 . . 225 4903 3203 222 851 1600 709 50 698 Parts Sabotaged . | . . . . . . . . . . . . . Parts Stolen . | . . . . . . . . . . . . . Parts Stripped . | . . . . . . . . . . . . . Power Chain Reactions 7 | . . . . . . . . . 1 3 1 2 Missiles Intercepted . | . . . . . . . . . . . . . Alert | -11 -10 -10 -10 -9 -8 -8 -8 -8 -7 -7 -7 -7 ------- Run | Jun Mat Min Exi Min Mat Gar Mat Gar Fac Gar Fac Gar Peak Influence 1525 | . 267 67 . 160 382 1386 680 1297 747 1525 800 834 Initial 800 | . . 17 . . 62 239 675 107 680 336 800 357 Average 487 | . 126 57 . 125 138 805 360 720 445 1034 560 588 Maximum Alert Level 4 | . 1 . . . 1 4 2 4 3 4 3 3 Low Security (%) 29 | . 85 100 . 100 72 . 22 4 5 . . . Level 1 24 | . 14 . . . 27 19 42 19 47 12 . 14 Level 2 22 | . . . . . . 25 34 29 43 10 88 55 Level 3 11 | . . . . . . 26 . 28 3 23 11 29 Level 4 11 | . . . . . . 29 . 18 . 53 . . Level 5 . | . . . . . . . . . . . . . High Security . | . . . . . . . . . . . . . Max Security . | . . . . . . . . . . . . . Squads Dispatched 26 | . 3 1 . . 5 . 3 . 10 . 4 . Investigation 10 | . 2 1 . . 2 . 1 . 1 . 3 . Extermination 6 | . . . . . . . . . 5 . 1 . Reinforcement 9 | . 1 . . . 3 . 2 . 3 . . . Assault 1 | . . . . . . . . . 1 . . . Garrison . | . . . . . . . . . . . . . Intercept . | . . . . . . . . . . . . . Searches Triggered . | . . . . . . . . . . . . . Construction Impeded . | . . . . . . . . . . . . . Haulers Reinforced 1 | . . . . . . . . . 1 . . . Active Scanning Responses . | . . . . . . . . . . . . . Cargo Convoy Interrupts . | . . . . . . . . . . . . . Alert ID Control Effect 2 | . . . . . . . . . . . . 2 Stealth | -11 -10 -10 -10 -9 -8 -8 -8 -8 -7 -7 -7 -7 --------- Run | Jun Mat Min Exi Min Mat Gar Mat Gar Fac Gar Fac Gar Distress Signals 7 | . 2 . . . 3 . 1 . 1 . . . Communications Jammed . | . . . . . . . . . . . . . Distress Signals . | . . . . . . . . . . . . . Times Spotted 234 | . 18 2 . 8 44 31 6 27 36 29 8 25 Peak Tracking Total 8 | . 3 2 . 3 5 8 6 5 5 7 4 6 Tactical Retreats 19 | . . . . 1 3 3 . 2 3 4 . 3 Traps | -11 -10 -10 -10 -9 -8 -8 -8 -8 -7 -7 -7 -7 ------- Run | Jun Mat Min Exi Min Mat Gar Mat Gar Fac Gar Fac Gar Traps Triggered 14 | . . . . . . 4 . 3 1 4 . 2 Indirectly . | . . . . . . . . . . . . . Trap Hack Attempts . | . . . . . . . . . . . . . Triggered . | . . . . . . . . . . . . . Disarmed . | . . . . . . . . . . . . . Reprogrammed 3 | . 3 . . . . . . . . . . . Reused . | . . . . . . . . . . . . . Traps Extracted . | . . . . . . . . . . . . . Installed . | . . . . . . . . . . . . . Triggered 1 | . . . . . . . . . . . . 1 Exploded 3 | . . . . . 3 . . . . . . . Machines | -11 -10 -10 -10 -9 -8 -8 -8 -8 -7 -7 -7 -7 ---------- Run | Jun Mat Min Exi Min Mat Gar Mat Gar Fac Gar Fac Gar Machines Disabled 30 | . 1 . . . . 3 . 8 8 6 2 2 Max in Single Turn 4 | . 1 . . . . 1 . 2 4 2 1 1 Garrison Relay 12 | . . . . . . 3 . 4 . 4 . 1 Phase Generator 1 | . . . . . . . . 1 . . . . Machines Repaired . | . . . . . . . . . . . . . Machines Sabotaged . | . . . . . . . . . . . . . Overloaded Fab Kills . | . . . . . . . . . . . . . Hacking | -11 -10 -10 -10 -9 -8 -8 -8 -8 -7 -7 -7 -7 --------- Run | Jun Mat Min Exi Min Mat Gar Mat Gar Fac Gar Fac Gar Machines Accessed 49 | . 6 1 2 . 8 3 5 3 8 4 7 2 Terminals 29 | . 4 . . . 4 3 2 3 4 4 3 2 Fabricators 3 | . . . . . . . . . 3 . . . Repair Stations 3 | . . . . . 1 . 1 . . . 1 . Recycling Units 4 | . 2 . . . 1 . . . . . 1 . Scanalyzers 3 | . . . . . 1 . 1 . . . 1 . Garrison Access 4 | . . . . . 1 . 1 . 1 . 1 . Total Hacks 184 | . 19 1 24 . 34 8 21 3 29 15 27 3 Successful 114 | . 11 1 24 . 24 3 16 3 17 4 10 1 Failed 70 | . 8 . . . 10 5 5 . 12 11 17 2 Catastrophic 14 | . 1 . . . . 1 1 . 3 1 5 2 Database Lockouts . | . . . . . . . . . . . . . Manual 60 | . 15 . 1 . 16 . 6 . 13 3 6 . Terminals 95 | . 11 . . . 16 8 8 3 17 15 14 3 Fabricators 11 | . . . . . . . . . 11 . . . Repair Stations 11 | . . . . . 4 . 2 . . . 5 . Recycling Units 16 | . 8 . . . 6 . . . . . 2 . Scanalyzers 22 | . . . . . 7 . 10 . . . 5 . Garrison Access 4 | . . . . . 1 . 1 . 1 . 1 . Terminal Hacks 61 | . 3 1 24 . 4 3 3 3 10 4 5 1 Record 23 | . . . 23 . . . . . . . . . Robot Analysis 5 | . 2 . . . 1 . . . 2 . . . Prototype ID Bank 2 | . . . . . 1 . 1 . . . . . Open Door 2 | . . 1 . . . 1 . . . . . . Open DSF 1 | . . . . . . . . . 1 . . . Branch Access Points 4 | . . . . . 1 . . . 2 . 1 . Emergency Access Points 5 | . . . . . . 1 . . 1 1 1 1 Garrison Index 2 | . . . . . 1 . 1 . . . . . Alert Level 1 | . . . . . . . . . . . 1 . Unreport Threat 6 | . . . . . . . 1 . 3 . 2 . Reprogram Traps 1 | . 1 . . . . . . . . . . . Hauler Manifests 1 | . . . . . . . . . 1 . . . Garrison Registry 2 | . . . . . . . . 1 . 1 . . Patrol Navigation 3 | . . . . . . 1 . 1 . 1 . . Security Stations 2 | . . . . . . . . 1 . 1 . . EX-Prototype ID Bank 1 | . . . 1 . . . . . . . . . Fabricator Hacks 2 | . . . . . . . . . 2 . . . Network Status 1 | . . . . . . . . . 1 . . . Build 1 | . . . . . . . . . 1 . . . Repair Station Hacks 7 | . . . . . 4 . 2 . . . 1 . Scan Component 4 | . . . . . 2 . 1 . . . 1 . Repair 3 | . . . . . 2 . 1 . . . . . Recycling Unit Hacks 3 | . 1 . . . 2 . . . . . . . Report Inventory 2 | . 1 . . . 1 . . . . . . . Retrieve Components 1 | . . . . . 1 . . . . . . . Scanalyzer 19 | . . . . . 7 . 9 . . . 3 . Insert Component 9 | . . . . . 3 . 5 . . . 1 . Analyze 10 | . . . . . 4 . 4 . . . 2 . Garrison Access Hacks 4 | . . . . . 1 . 1 . 1 . 1 . Unlock Access 4 | . . . . . 1 . 1 . 1 . 1 . Unauthorized Hacks 18 | . 7 . . . 6 . 1 . 4 . . . Terminals 9 | . 3 . . . 4 . 1 . 1 . . . Botnet 9 | . 3 . . . 4 . 1 . 1 . . . Fabricators 3 | . . . . . . . . . 3 . . . Fabnet 2 | . . . . . . . . . 2 . . . Overload 1 | . . . . . . . . . 1 . . . Repair Stations . | . . . . . . . . . . . . . Recycling Units 6 | . 4 . . . 2 . . . . . . . Reject 2 | . 1 . . . 1 . . . . . . . Mask 3 | . 2 . . . 1 . . . . . . . Tunnel 1 | . 1 . . . . . . . . . . . Scanalyzers . | . . . . . . . . . . . . . Garrison Access . | . . . . . . . . . . . . . Data Cores Recovered 2 | . 1 . . . . . 1 . . . . . Used . | . . . . . . . . . . . . . Hacking Detections 34 | . 5 . . . 6 1 4 2 4 4 6 2 Full Trace Events 13 | . 3 . . . 3 1 1 . . 1 3 1 Feedback Events 2 | . . . . . . . . . . . 1 1 Corruption 1 | . . . . . . . . . . . . 1 Hackware Fried 1 | . . . . . . . . . . . 1 . Feedback Blocked . | . . . . . . . . . . . . . Robot Schematics Acquired . | . . . . . . . . . . . . . Robots Built . | . . . . . . . . . . . . . Authchips . | . . . . . . . . . . . . . Time . | . . . . . . . . . . . . . Total Robot Build Rating . | . . . . . . . . . . . . . Part Schematics Acquired 7 | . . . . . 2 . 4 . . . 1 . Parts Built 2 | . . . . . . . . . 2 . . . Authchips . | . . . . . . . . . . . . . Time 47 | . . . . . . . . . 47 . . . Total Part Build Rating 10 | . . . . . . . . . 10 . . . Parts Repaired 3 | . . . . . 2 . 1 . . . . . Time 218 | . . . . . 140 . 78 . . . . . Parts Recycled . | . . . . . . . . . . . . . Recycled Matter . | . . . . . . . . . . . . . Retrieved Matter . | . . . . . . . . . . . . . Retrieved Components 10 | . . . . . 10 . . . . . . . Parts Scanalyzed 9 | . . . . . 3 . 5 . . . 1 . Part Schematics Acquired 7 | . . . . . 2 . 4 . . . 1 . Parts Damaged 4 | . . . . . 1 . 2 . . . 1 . Bothacking | -11 -10 -10 -10 -9 -8 -8 -8 -8 -7 -7 -7 -7 ------------ Run | Jun Mat Min Exi Min Mat Gar Mat Gar Fac Gar Fac Gar Used RIF Installer 4 | . . . . . . 1 . 1 . 1 . 1 Coupler Efficiency 1 | . . . . . . . . . . . . 1 Alert ID Control 1 | . . . . . . . . . . 1 . . Program Shield 1 | . . . . . . . . 1 . . . . Robots Hacked 29 | . . . 4 . . . . 4 16 2 . 3 Non-combat 13 | . . . 3 . . . . . 10 . . . Combat 16 | . . . 1 . . . . 4 6 2 . 3 Robot Hacks Applied 36 | . . . 4 . . . . 5 21 3 . 3 parse_system 5 | . . . 4 . . . . . 1 . . . no_distress 3 | . . . . . . . . . 3 . . . start_evac 1 | . . . . . . . . . 1 . . . find_chute 1 | . . . . . . . . . 1 . . . find_fabricator 3 | . . . . . . . . . 3 . . . find_dsf 1 | . . . . . . . . . 1 . . . drop_inventory 1 | . . . . . . . . . 1 . . . find_recycling 2 | . . . . . . . . . 2 . . . scatter_targeting 1 | . . . . . . . . 1 . . . . mark_system 1 | . . . . . . . . 1 . . . . broadcast_data 1 | . . . . . . . . . . 1 . . spike_heat 1 | . . . . . . . . . . . . 1 disable_weapons 1 | . . . . . . . . . . 1 . . overwrite_iff 8 | . . . . . . . . 3 5 . . . formatsys_high 6 | . . . . . . . . . 3 1 . 2 Relay Couplers Released 52 | . . . . . . 12 . 18 . 15 3 4 Machine Destruction 49 | . . . . . . 12 . 18 . 15 . 4 Programmers 3 | . . . . . . . . . . . 3 . Attached 9 | . . . . . . . . 1 3 4 1 . Fabnet Peak Effective % . | . . . . . . . . . . . . . Robots Rewired 6 | . . . . . . 4 . 2 . . . . Allies Hacked . | . . . . . . . . . . . . . Hacks Repelled . | . . . . . . . . . . . . . Allies | -11 -10 -10 -10 -9 -8 -8 -8 -8 -7 -7 -7 -7 -------- Run | Jun Mat Min Exi Min Mat Gar Mat Gar Fac Gar Fac Gar Total Allies 24 | . . . . . . 6 . 5 8 3 . 2 Largest Group 6 | . . . . . . 6 . 3 4 2 2 2 Highest-Rated Group 160 | . . . . . . 84 . 81 74 160 104 64 Highest-Rated Ally 80 | . . . . . . 39 . 39 30 80 80 32 Total Orders 1 | . . . . . . . . . 1 . . . STAY 1 | . . . . . . . . . 1 . . . Ally Attacks 128 | . . . . . . 26 . 56 17 10 9 10 Total Damage 2614 | . . . . . . 339 . 657 275 761 226 356 Kills 23 | . . . . . . 2 . 11 2 4 2 2 Allies Corrupted 1 | . . . . . . . . . 1 . . . Allies Melted . | . . . . . . . . . . . . . Intel | -11 -10 -10 -10 -9 -8 -8 -8 -8 -7 -7 -7 -7 ------- Run | Jun Mat Min Exi Min Mat Gar Mat Gar Fac Gar Fac Gar Robot Analysis Total 5 | . 2 . . . 1 . . . 2 . . . Derelict Logs Recovered 1 | . . 1 . . . . . . . . . . Drone Launches . | . . . . . . . . . . . . . Drone Recoveries . | . . . . . . . . . . . . . Exploration | -11 -10 -10 -10 -9 -8 -8 -8 -8 -7 -7 -7 -7 ------------- Run | Jun Mat Min Exi Min Mat Gar Mat Gar Fac Gar Fac Gar Turns Passed 16023 | . 1228 454 401 336 3069 1948 1552 1746 2246 1797 543 703 Spaces Moved 6330 | 1 536 303 287 210 1011 654 268 615 1177 671 328 269 Core 1 | . . . . . . . . . . . . 1 Treads 1120 | . 117 . . . . . 263 411 5 324 . . Legs 63 | 1 62 . . . . . . . . . . . Wheels 5146 | . 357 303 287 210 1011 654 5 204 1172 347 328 268 Hover . | . . . . . . . . . . . . . Flight . | . . . . . . . . . . . . . Fastest Speed 110 | 120 110 130 130 130 115 115 190 120 120 120 120 120 Average Speed 149 | 120 148 130 130 132 118 156 242 203 123 183 120 147 Slowest Speed 1800 | 120 240 130 130 135 145 205 243 243 240 400 135 1800 Overloaded Moves . | . . . . . . . . . . . . . Propulsion Burnouts . | . . . . . . . . . . . . . Robots Hopped . | . . . . . . . . . . . . . Cave-ins Triggered . | . . . . . . . . . . . . . Exploration Rate (%) 54 | 2 88 71 69 61 64 76 24 91 36 84 10 31 Regions Visited 12 Branch Regions 3 Pre-discovered Areas 3 | . 1 1 1 . . . . . . . . . Known Exits Taken 4 | . . . . . 1 . 1 . 1 . 1 . Unknown Exits Taken 5 | 1 1 1 1 1 . . . . . . . . Scrap Searched . | . . . . . . . . . . . . . Spaces Dug 16 | . . . . . . . 5 1 10 . . . Terrain Destroyed 274 | . . . . . 6 10 6 110 53 31 9 49 Melee 15 | . . . . . . . 5 . 10 . . . Projectile 41 | . . . . . 6 3 1 1 16 2 6 6 AOE 217 | . . . . . . 7 . 109 27 29 3 42 Terrain Rammed . | . . . . . . . . . . . . . Walls Destroyed . | . . . . . . . . . . . . . Machines Disabled . | . . . . . . . . . . . . . Actions | -11 -10 -10 -10 -9 -8 -8 -8 -8 -7 -7 -7 -7 --------- Run | Jun Mat Min Exi Min Mat Gar Mat Gar Fac Gar Fac Gar Total 11774 | . 803 353 315 246 2653 1434 1150 1008 1816 1088 440 468 Wait 4123 | . 141 21 13 25 1392 574 840 261 440 230 87 99 Move 6322 | . 535 302 286 209 1011 653 268 614 1177 670 328 269 Hop . | . . . . . . . . . . . . . Pick Up 165 | . 22 10 5 . 39 26 9 11 20 18 1 4 Fast Attach 57 | . 8 . . . 14 4 4 3 12 12 . . Attach 43 | . 1 . . 1 11 6 2 1 7 4 4 6 Detach 9 | . . . . . 3 1 1 . 1 2 1 . Swap 110 | . 3 5 1 1 24 10 3 9 33 17 . 4 Drop 160 | . 10 9 6 . 40 27 10 14 24 18 1 1 Fire 654 | . 83 6 . 10 119 81 7 81 80 100 18 69 Melee 34 | . . . 4 . . . 6 . 21 3 . . Ram . | . . . . . . . . . . . . . Kick . | . . . . . . . . . . . . . Crush . | . . . . . . . . . . . . . Escape Stasis 56 | . . . . . . 24 . 2 . 14 . 16 Rewire 41 | . . . . . . 28 . 12 1 . . . Trap . | . . . . . . . . . . . . . Miscellaneous . | . . . . . . . . . . . . . Route ------- -11/Junkyard -10/Materials (discovered 4 exits: [*Mat x2] / *Min x2) -10/Mines (discovered 3 exits: [*Mat x2] / *Exi) -10/Exiles -9/Mines (discovered 2 exits: *Mat x2) -8/Materials (discovered 2 exits: *Fac / Gar) -8/Garrison (discovered 2 exits: *Mat x2) -8/Materials -8/Garrison (discovered 3 exits: *Fac x3) -7/Factory (discovered 6 exits: [*Fac] / Sto x2 / Low x2 / Gar) -7/Garrison (discovered 3 exits: *Fac x3) -7/Factory (discovered 4 exits: *Sto / Low x2 / Gar) -7/Garrison History --------- Turn | Location | Event 1 | -11/Junkyard | Discovered new exit (range 0) 1 | -11/Junkyard | Entered Materials 263 | -10/Materials | Discovered new exit (range 15) 335 | -10/Materials | Build established: Mutant 770 | -10/Materials | Discovered new exit (range 16) 1058 | -10/Materials | Discovered new exit (range 8) 1088 | -10/Materials | Discovered new exit (range 8) 1229 | -10/Materials | Entered Mines 1238 | -10/Mines | Core integrity fell below 50% 1259 | -10/Mines | Met a Derelict bent on vengeance 1275 | -10/Mines | Learned Materials trap positions 1310 | -10/Mines | Received a Rocket Launcher from a helpful Derelict 1316 | -10/Mines | Discovered new exit (range 15) 1429 | -10/Mines | Discovered new exit (range 11) 1500 | -10/Mines | Met a Derelict shopkeep closing up shop 1615 | -10/Mines | Found a damaged Exp. Sensor Array with a note attached 1618 | -10/Mines | Found Prototype Device 1622 | -10/Mines | Identified Exp. Sensor Array 1678 | -10/Mines | Deemed a non-threat by the Exiles lab entrance 1678 | -10/Mines | Discovered new exit (range 5) 1683 | -10/Mines | Entered Exiles 1725 | -10/Exiles | Met 8R-AWN 1762 | -10/Exiles | Met EX-HEX 1798 | -10/Exiles | Met EX-BIN 1815 | -10/Exiles | Aligned with FarCom system 1817 | -10/Exiles | Given EX-Vault access code 1851 | -10/Exiles | Opened EX-Vault 1860 | -10/Exiles | Found Cloak of Protection 1888 | -10/Exiles | Warned to stay clear of 0b10 Research branches 1963 | -10/Exiles | Met EX-DEC 1994 | -10/Exiles | Build established: Scavenger-Mutant 2001 | -10/Exiles | Learned location of Zion (-6) 2062 | -10/Exiles | Discovered new exit (range 14) 2084 | -10/Exiles | Left Exiles lab with Cloak of Protection 2084 | -10/Exiles | Entered Mines 2193 | -9/Mines | Assembled infested the area 2198 | -9/Mines | Assisted by a Guerilla fighting off Assembled 2320 | -9/Mines | Discovered new exit (range 10) 2359 | -9/Mines | Discovered new exit (range 9) 2394 | -9/Mines | Build established: Mutant 2420 | -9/Mines | Entered Materials 2420 | -8/Materials | Evolved 4 slots: Propulsion x1, Utility x3 2421 | -8/Materials | Loaded intel: 12 trap records 2758 | -8/Materials | Build established: Hacker-Mutant 3648 | -8/Materials | Repaired Exp. Sensor Array 3681 | -8/Materials | Repaired Spread Laser 3989 | -8/Materials | Discovered new exit (range 3) 4786 | -8/Materials | Build established: Scavenger-Mutant 5489 | -8/Materials | Identified exit to Garrison 5489 | -8/Materials | Entered Garrison 5801 | -8/Garrison | Rescued a captive Derelict 5801 | -8/Garrison | Rescued a captive Derelict 5852 | -8/Garrison | Triggered checkpoint 5886 | -8/Garrison | Garrison Relay disabled 5983 | -8/Garrison | Installed Relay Interface Framework 6035 | -8/Garrison | Core integrity fell below 50% 6318 | -8/Garrison | Triggered checkpoint 6400 | -8/Garrison | Garrison Relay disabled 6450 | -8/Garrison | Discovered new exit (range 10) 6784 | -8/Garrison | Triggered checkpoint 6837 | -8/Garrison | Garrison Relay disabled 6860 | -8/Garrison | Triggered checkpoint 6958 | -8/Garrison | Discovered new exit (range 13) 7051 | -8/Garrison | Build established: Hacker-Mutant 7355 | -8/Garrison | Found Imp. Powered Armor 7437 | -8/Garrison | Entered Materials 7864 | -8/Materials | Repaired Broken Adv. System Restoration Module? 8989 | -8/Materials | Identified exit to Garrison 8989 | -8/Materials | Entered Garrison 9074 | -8/Garrison | Phase Generator disabled 9397 | -8/Garrison | Triggered checkpoint 9576 | -8/Garrison | Core integrity fell below 20% 9618 | -8/Garrison | Destroyed 9 combat bots 9626 | -8/Garrison | Learned Factory security intel 9665 | -8/Garrison | Garrison Relay disabled 9908 | -8/Garrison | Triggered checkpoint 9912 | -8/Garrison | Triggered checkpoint 9997 | -8/Garrison | Build established: Bothacker-Mutant 10055 | -8/Garrison | Garrison Relay disabled 10080 | -8/Garrison | Triggered checkpoint 10168 | -8/Garrison | Discovered new exit (range 12) 10183 | -8/Garrison | Discovered new exit (range 58) 10183 | -8/Garrison | Discovered new exit (range 13) 10183 | -8/Garrison | Discovered new exit (range 87) 10399 | -8/Garrison | Triggered checkpoint 10510 | -8/Garrison | Triggered checkpoint 10519 | -8/Garrison | Expanded RIF knowledge: Program Shield 10571 | -8/Garrison | Garrison Relay disabled 10693 | -8/Garrison | Garrison Relay disabled 10720 | -8/Garrison | Triggered checkpoint 10735 | -8/Garrison | Entered Factory 10735 | -7/Factory | Accompanied by 1 ally 10735 | -7/Factory | Evolved 2 slots: Utility x2 10833 | -7/Factory | Identified exit to DSF 11535 | -7/Factory | First assault squad dispatched 11538 | -7/Factory | Build established: Hacker-Mutant 11681 | -7/Factory | Identified exit to Storage 11681 | -7/Factory | Identified exit to Lower Caves 11863 | -7/Factory | Fabricated Imp. Medium Treads (x2) 11937 | -7/Factory | Discovered new exit (range 16) 12233 | -7/Factory | Build established: Wizard-Mutant 12900 | -7/Factory | Lost 3 parts (1n1u1w) 12981 | -7/Factory | Identified exit to Garrison 12981 | -7/Factory | Entered Garrison 13128 | -7/Garrison | Triggered checkpoint 13158 | -7/Garrison | System corruption reached 10% 13163 | -7/Garrison | Spotted B-75 Beast 13182 | -7/Garrison | Build established: Hacker-Mutant 13212 | -7/Garrison | Garrison Relay disabled 13417 | -7/Garrison | Destroyed 7 combat bots 13576 | -7/Garrison | Triggered checkpoint 13669 | -7/Garrison | Garrison Relay disabled 13701 | -7/Garrison | Learned Factory security intel 13741 | -7/Garrison | Discovered new exit (range 12) 13798 | -7/Garrison | Triggered checkpoint 13934 | -7/Garrison | Garrison Relay disabled 14056 | -7/Garrison | Triggered checkpoint 14155 | -7/Garrison | Discovered new exit (range 5) 14188 | -7/Garrison | Found embedded Infiltrators 14194 | -7/Garrison | Triggered checkpoint 14227 | -7/Garrison | Garrison Relay disabled 14323 | -7/Garrison | System corruption reached 30% 14402 | -7/Garrison | Discovered new exit (range 32) 14402 | -7/Garrison | Discovered new exit (range 19) 14402 | -7/Garrison | Discovered new exit (range 58) 14438 | -7/Garrison | Triggered checkpoint 14477 | -7/Garrison | Expanded RIF knowledge: Alert ID Control 14498 | -7/Garrison | Triggered checkpoint 14526 | -7/Garrison | Build established: Bothacker-Mutant 14605 | -7/Garrison | Destroyed B-75 Beast 14778 | -7/Garrison | Entered Factory 14778 | -7/Factory | Accompanied by 2 allies 15096 | -7/Factory | System Shield fried by hacking feedback 15277 | -7/Factory | Core integrity fell below 50% 15321 | -7/Factory | Identified exit to Garrison 15321 | -7/Factory | Entered Garrison 15386 | -7/Garrison | Triggered checkpoint 15515 | -7/Garrison | Garrison Relay disabled 15539 | -7/Garrison | Expanded RIF knowledge: Coupler Efficiency 15829 | -7/Garrison | Lost 3 parts (1u2w) 15844 | -7/Garrison | Triggered checkpoint 15882 | -7/Garrison | Core integrity fell below 20% 16024 | -7/Garrison | Destroyed by G-47 Trooper with Particle Gun Last Messages --------------- 15965_ L-41 Fighter destroyed. 15973_ Guardian 4a destroyed. 15977_ L-41 Fighter destroyed. 15980_ Arm. Wheel destroyed. 15982_ System corrupted: FCS attempts to trigger Wave Gun. 15982_ System corrupted: Wave Gun misfires. 15986_ P-60 Hacker fails to hack Guardian 4b. 15991_ Guardian 4b destroyed. 15993_ System corrupted: Wave Gun failed to cycle. 15995_ Destroyed Shock Rifle. 15996_ System Shield destroyed. 15998_ P-60 Hacker destroyed. 15999_ System corrupted: Heat flow error (+150). 15999_ Imp. Remote Datajack destroyed. 16000_ Destroyed Flak Gun. 16003_ Y-54 Guardian destroyed. 16010_ Acquired 70 matter. 16014_ C-30 ARC bursts open, deploying its payload. 16014_ G-47 Trooper unfolds itself. 16016_ System corrupted: Component data lost. Map ----- +----------------------------------------------------+ | ?????????????????????????????????????????????????? | | ?????????????????????????????????????????????????? | | ?????????????????????????????+?+????????+????????? | | ?????????????????????????????????????????????????? | | ???????????????????????????+?????+???????????????? | | ?????????????????????????????????????????????????? | | ?????????????????????????????+?+?????????????????? | | ?????????????????????????????????????????????????? | | ??????????????????????????????+??????????????????? | | ??????????????????????????????????????+??????????? | | ?????????????????????????????????????????????????? | | ?????????????????????#####???????????????????????? | | ?????????????????????# ???????????????????????? | | ????????????????????## ###+##?????????????????? | | ??????????????### ?? #?????????????????? | | ??????+??????? % ? ?????????????????? | | ??????+???????? ? ?????????????????? | | ????????????????# ?# ## #????????+????????? | | ??????????????### g## ## ###???????????????? | | ??????????????# gg #???????????????? | | ??????????????# #???????????????? | | ???????????????? =%! #???????????????? | | ??????????????????? !!%! *%= ????????????????? | | ????????????????# ???# =!*## #?????????##??????? | | ????????????????# ## %l##^^^##########T######## | | ????????????????# = *@ ^^ | | ????????????????+ %* [ ########## | | ????????????????# ###;;;# #????????? | | ????????????????## ## % ## ##?#"["# #????????? | | ?????????????????# ??# ## #??## ## #????????? | | ?????????????????#???####### #???# ## #????????? | | ?+?????+?????????+?????????# #???#* + +????????? | | ??????????????????????????## """## ## #????????? | | ?????????????????????????# %! !## #????????? | | ?????????????????????????# "##### #????????# | | ????????????+????????????# # ## #????????# | | ??+??????????????????????# # ! ########## | | ?????????????????????????# ^ | [ | | ????????????+????????????# ## ##[ ########## | | ?????????????????????????## # # ## #????????? | | ??????????????????????????## ######## #????????? | | ???????????????????????????## #??????# #????????? | | ????????????????????????????# #??????# #????????? | | ?????+????????????????????### ###????# #????????? | | ????????????+?????????????#! [#????# ########## | | ??????????????????????????#! ^[+????+ | | ??????????????????????????#! [#????# | | ??????????????????????????#!! [[#????#"+########## | | ??????????????????????????#######????? ??????????# | | ???????????+???+?????????????????????? ??????????# | +----------------------------------------------------+ Best States ------------- Heat Dissipation 61 Energy Generation 21 Energy Capacity 315 Matter Stores 300 Matter Capacity 300 Sight Range 16 Terrain Scan Density 10 Jamming Range 16 Cloak Strength 5 Armor Coverage 400 Resistance: TH 10 Propulsion Shielding 66 Phase Shifting 5 Evasion (%) 55 Targeting Accuracy 6 Armor Integrity Analysis 30 Recoil Reduction 3 Particle Charging 20 Offensive Hacking 30 Defensive Hacking 30 Relay Coupler Types 3 Relay Coupler Value 101 Item Schematics ----------------- Humpback | -8/Materials | Scanalyzed Arm. Wheel | -8/Materials | Scanalyzed Nuclear Pulse Array | -8/Materials | Scanalyzed Adv. System Restoration Module | -8/Materials | Scanalyzed Variable Charge Gun | -8/Materials | Scanalyzed Hrd. Heavy Armor Plating | -8/Materials | Scanalyzed Centrium Wheel | -7/Factory | Scanalyzed Robot Schematics ------------------ None Fabricated ------------ Imp. Medium Treads | x2 | -7/Factory | Preloaded Alien Tech Used ----------------- None Achievements -------------- None Challenges ------------ None Game ------ Seed NavigationGravitonPropulsion Manual? 0 Play Time 02:00:35 Cumulative 520.0 hours Start 2023.03.30 @ 14:00:38 End 2023.03.30 @ 16:05:24 Sessions 1 Manual Loads 0 Difficulty Rogue Special Mode None Game No. 551 Rogue 551 Adventurer 0 Explorer 0 Win Type - Total 1 Types 1/0/0/0/0/0/0/0/0 Lore% 65 Gallery% 83 Achievement% 65 Wizard Run 0 Options --------- ASCII 0 Keyboard 0 Movement Mouse Keybinds 0 Fullscreen 2 Font 24/Smallcaps Map View 76x50 Tactical HUD 1 Map Filters NONE Filters NONE Steam 1 RUN: 247c8391-122a-4a39-957b-68598e83ce8f